Cogmind - Beta 16 @@@ ROGUE MODE // 2026.02.01 @ 19:32:55 Player: Assis Result: Self-destructed Performance ------------- Evolutions (1) 500 Regions Visited (2) 400 Robots Destroyed (14) 70 Value Destroyed (392) 392 Prototype IDs (3) 60 Alien Tech Used (0) 0 Bonus (0) 0 TOTAL SCORE: 1422 Bonus ------- None Cogmind --------- Core Integrity 304/400 Matter 252/300 Energy 100/100 System Corruption 4% Temperature Cool (0) Movement Treading (240) Ox1 Location -9/Materials Parts ------- > --- POWER (1) -------- (None) > --- PROPULSION (2) --- Light Treads > --- UTILITY (3) ------ Large Storage Unit Structural Scanner > --- WEAPON (3) ------- Light Assault Rifle > --- INVENTORY (15) --- Ion Engine Ion Engine Ion Engine Light Treads Heat Sink Improved Heat Sink Small Storage Unit Weight Redist. System Improved Terrain Scanner Datajack Datajack Peak State ------------ > --- POWER ------------ Light Ion Engine > --- PROPULSION ------- Light Treads Light Treads > --- UTILITY ---------- Large Storage Unit Structural Scanner Seismic Detector > --- WEAPON ----------- Light Assault Rifle Light Assault Rifle > --- INVENTORY -------- Ion Engine Ion Engine Ion Engine Light Treads Light Treads Heat Sink Improved Heat Sink Small Storage Unit Weight Redist. System Improved Terrain Scanner Datajack Datajack [Rating: 9] Favorites ----------- Power Light Ion Engine Engine Light Ion Engine Propulsion Light Treads Treads Light Treads Utility Seismic Detector Device Seismic Detector Storage Large Storage Unit Weapon Light Assault Rifle Energy Gun EM Pulse Gun Ballistic Gun Light Assault Rifle Build | -11 -10 -9 ------- Run | Yrd Mat Mat Slots Evolved 2 | . . 2 Power . | . . . Propulsion . | . . . Utility 1 | . . 1 Weapon 1 | . . 1 Parts Attached 11 | 7 2 2 Power 1 | 1 . . Engine 1 | 1 . . Core . | . . . Reactor . | . . . Propulsion 3 | 2 . 1 Treads 3 | 2 . 1 Leg . | . . . Wheel . | . . . Hover . | . . . Flight . | . . . Utility 4 | 2 1 1 Device 2 | 1 . 1 Storage 2 | 1 1 . Processor . | . . . Hackware . | . . . Protection . | . . . Artifact . | . . . Weapon 3 | 2 1 . Energy Gun 1 | 1 . . Energy Cannon . | . . . Ballistic Gun 2 | 1 1 . Ballistic Cannon . | . . . Launcher . | . . . Special Weapon . | . . . Impact Weapon . | . . . Slashing Weapon . | . . . Piercing Weapon . | . . . Special Melee Weapon . | . . . Unidentified Prototypes . | . . . Corrupted Parts 1 | . . 1 System Corruption 4 | . . 4 Parts Lost 5 | . . 5 Power 1 | . . 1 Propulsion 2 | . . 2 Utility 1 | . . 1 Weapon 1 | . . 1 Highest Loss Streak 5 | . . 5 To Critical Strikes . | . . . Average Backups 7 | . 8 11 Power 2 | . 2 3 Propulsion . | . . 1 Utility 3 | . 3 5 Weapon . | . . . Tool/Special . | . . . Unused Backups 10 | . . 10 Power 3 | . . 3 Propulsion 1 | . . 1 Utility 4 | . . 4 Weapon . | . . . Tool/Special 2 | . . 2 Average Slot Usage (%) 96 | . 99 81 Engine 13 | . 14 8 Treads 26 | . 28 19 Device 14 | . 14 21 Storage 13 | . 14 11 Energy Gun 10 | . 12 . Ballistic Gun 15 | . 14 20 Peak Build Rating 9 | 7 8 9 Average Rating 7 | 5 7 8 On Entrance 5 | . 7 8 Avg Prop Armor Cover (%) . | . . . Naked Turns . | . . . Heaviest Build 27 | 12 27 27 Greatest Support 40 | 40 40 40 Greatest Overweight (x) 1 | . . 1 Average Overweight (x) . | . . . Largest Inventory Capacity 15 | 8 15 15 Average Capacity 14 | 7 14 15 Most Carried 14 | 2 14 12 Average Carried 7 | . 8 11 Final Capacity 15 | 8 15 15 Final Carried 13 | 2 13 11 Class Distribution -------------------- 100% | Mutant Dominant Class ---------------- Mutant | -10/Materials Mutant | -9/Materials Resources | -11 -10 -9 ----------- Run | Yrd Mat Mat Matter Collected 326 | 236 90 . Remotely . | . . . Salvage Created 666 | 17 376 273 Parts 34 | 5 18 11 Haulers Intercepted 1 | . 1 . Recyclers Shooed 2 | . . 2 Parts Field Recycled . | . . . Retrieved Matter . | . . . Parts Self-Destructed . | . . . Prevented . | . . . Parts Restored . | . . . Kills | -11 -10 -9 ------- Run | Yrd Mat Mat Combat Hostiles Destroyed 9 | . 6 3 Guns 9 | . 6 3 Classes Destroyed 7 | 1 3 3 Tunneler 1 | 1 . . Hauler 1 | . 1 . Recycler 1 | . . 1 Operator 2 | . 1 1 Grunt 7 | . 6 1 Brawler 1 | . . 1 Sentry 1 | . . 1 Best Kill Streak 4 | 1 3 4 Combat Bots Only 3 | . 2 3 Max Kills in Single Turn 2 | 1 2 1 Gunslinging 1 | . 1 . Exploded . | . . . Melee . | . . . Uniques/NPCs Destroyed . | . . . Combat | -11 -10 -9 -------- Run | Yrd Mat Mat Hostile Shots Fired 75 | . 29 46 Missed 16 | . 8 8 Hits 59 | . 21 38 Melee 3 | . . 3 Projectile 56 | . 21 35 Critical Strikes 1 | . 1 . Damage Taken 862 | 14 357 491 Core 184 | . 88 96 Absorbed by Shields . | . . . Core Remaining (%) 82 | 100 64 . Volleys Fired 73 | 10 36 27 Largest 2 | 2 2 2 Hottest 60 | 60 60 40 Shots Fired 132 | 20 69 43 Gun 132 | 20 69 43 Cannon . | . . . Launcher . | . . . Special . | . . . Kinetic 89 | 10 36 43 Thermal . | . . . Explosive . | . . . Electromagnetic 43 | 10 33 . Robot Hit Streak 12 | 10 12 7 Robot Miss Streak 4 | 2 4 4 Penetration Max . | . . . Secondary Targets 1 | . 1 . Max Gunslinging Chain 1 | . 1 . Shots Hit Robots 89 | 15 45 29 Core Hits 32 | 2 18 12 Critical Kills 1 | . 1 . Critical Parts Destroyed 1 | . 1 . Critical Strikes 3 | . 3 . Destroy 2 | . 2 . Corrupt 1 | . 1 . Melee Attacks . | . . . Impact . | . . . Slashing . | . . . Piercing . | . . . Sneak Attacks . | . . . Combat Hostiles . | . . . Follow-up Attacks . | . . . Damage Inflicted 979 | 203 515 261 Guns 917 | 172 484 261 Cannons . | . . . Explosions 59 | 31 28 . Melee . | . . . Ramming 3 | . 3 . Kinetic 529 | 69 199 261 Thermal 59 | 31 28 . Explosive . | . . . Electromagnetic 388 | 103 285 . Impact . | . . . Slashing . | . . . Piercing . | . . . Highest Corruption 4 | . . 4 Average Corruption 4 | . . 4 Corruption Purged . | . . . Corruption Blocked . | . . . Overload Shots . | . . . Overflow Damage 6 | . 6 . Projectiles . | . . . Explosions 6 | . 6 . Melee . | . . . Knockbacks . | . . . Impact . | . . . Kinetic . | . . . Secondary . | . . . Self-Inflicted Damage 40 | 14 26 . Shots 2 | 1 1 . Rammed 1 | . 1 . Targets Rammed 1 | . 1 . Kicked . | . . . Crushed . | . . . Highest Temperature 142 | 52 142 9 Average Temperature 39 | 25 45 5 Received Heat Transfer 393 | . 189 204 Siege Activations . | . . . Martial Activations . | . . . Shielding Activations . | . . . Robots Disrupted . | . . . Combat Hostiles . | . . . Robots Corrupted . | . . . Combat Hostiles . | . . . Parts Fried . | . . . Impact Corruptions . | . . . Robots Melted . | . . . Combat Hostiles . | . . . Parts Melted . | . . . Heat Transferred 100 | 50 50 . Parts Sabotaged . | . . . Parts Stolen . | . . . Parts Stripped . | . . . Power Chain Reactions 2 | 1 1 . Alert | -11 -10 -9 ------- Run | Yrd Mat Mat Maximum Alert Level . | . . . Low Security (%) 100 | 100 100 100 Level 1 . | . . . Level 2 . | . . . Level 3 . | . . . Level 4 . | . . . Level 5 . | . . . High Security . | . . . Max Security . | . . . Peak Influence 77 | 5 77 45 Initial . | . . . Average 11 | . 12 6 Influence Increases 295 | 5 200 90 Destroy 0b10 Robot/C 180 | . 120 60 Destroy 0b10 Robot/NC 25 | 5 10 10 Destroy Leader 52 | . 32 20 Successful Hack 17 | . 17 . Destroy Structure 6 | . 6 . Lose Combat Pursuer 15 | . 15 . Influence Decreases 270 | 5 200 65 Time Decay 230 | 5 200 25 Lost Part 40 | . . 40 Squads Dispatched 2 | . 1 1 Investigation . | . . . Extermination . | . . . Reinforcement 2 | . 1 1 Assault . | . . . Garrison . | . . . Intercept . | . . . Searches Triggered . | . . . Construction Impeded . | . . . Haulers Reinforced . | . . . Active Scanning Responses . | . . . Cargo Convoy Interrupts . | . . . Stealth | -11 -10 -9 --------- Run | Yrd Mat Mat Distress Signals . | . . . Communications Jammed . | . . . Distress Signals . | . . . Times Spotted 21 | . 15 6 Peak Tracking Total 4 | . 3 4 Tactical Retreats 1 | . 1 . Traps | -11 -10 -9 ------- Run | Yrd Mat Mat Traps Triggered 1 | . 1 . Indirectly . | . . . Trap Hack Attempts . | . . . Triggered . | . . . Disarmed . | . . . Reprogrammed . | . . . Reused . | . . . Traps Extracted . | . . . Installed . | . . . Triggered . | . . . Machines | -11 -10 -9 ---------- Run | Yrd Mat Mat Machines Disabled . | . . . Max in Single Turn . | . . . Machines Repaired . | . . . Machines Dismantled . | . . . Machines Sabotaged . | . . . Overloaded Fab Kills . | . . . Hacking | -11 -10 -9 --------- Run | Yrd Mat Mat Machines Accessed 5 | . 5 . Terminals 5 | . 5 . Fabricators . | . . . Repair Stations . | . . . Recycling Units . | . . . Scanalyzers . | . . . Garrison Access . | . . . Total Hacks 13 | . 13 . Successful 8 | . 8 . Failed 5 | . 5 . Catastrophic 1 | . 1 . Database Lockouts . | . . . Manual 1 | . 1 . Terminals 13 | . 13 . Fabricators . | . . . Repair Stations . | . . . Recycling Units . | . . . Scanalyzers . | . . . Garrison Access . | . . . Terminal Hacks 8 | . 8 . Prototype ID Bank 2 | . 2 . Emergency Access Points 1 | . 1 . Scanalyzer Index 1 | . 1 . Locate Traps 1 | . 1 . Registered Components 1 | . 1 . Zone Layout 2 | . 2 . Fabricator Hacks . | . . . Repair Station Hacks . | . . . Recycling Unit Hacks . | . . . Scanalyzer . | . . . Garrison Access Hacks . | . . . Unauthorized Hacks . | . . . Terminals . | . . . Fabricators . | . . . Repair Stations . | . . . Recycling Units . | . . . Scanalyzers . | . . . Garrison Access . | . . . Data Cores Recovered . | . . . Used . | . . . Hacking Detections 5 | . 5 . Full Trace Events . | . . . Feedback Events . | . . . Feedback Blocked . | . . . Robot Schematics Acquired . | . . . Robots Built . | . . . Authchips . | . . . Time . | . . . Total Robot Build Rating . | . . . Part Schematics Acquired . | . . . Parts Built . | . . . Authchips . | . . . Time . | . . . Total Part Build Rating . | . . . Part Studies Acquired . | . . . Parts Repaired . | . . . Time . | . . . Parts Recycled . | . . . Recycled Matter . | . . . Retrieved Matter . | . . . Retrieved Components . | . . . Parts Scanalyzed . | . . . Part Schematics Acquired . | . . . Parts Damaged . | . . . Bothacking | -11 -10 -9 ------------ Run | Yrd Mat Mat Used RIF Installer . | . . . Robots Hacked . | . . . Non-combat . | . . . Combat . | . . . Robot Hacks Applied . | . . . Relay Couplers Released . | . . . Fabnet Peak Effective % . | . . . Robots Rewired . | . . . Allies Hacked . | . . . Hacks Repelled . | . . . Allies | -11 -10 -9 -------- Run | Yrd Mat Mat Total Allies . | . . . Largest Group . | . . . Highest-Rated Group . | . . . Highest-Rated Ally . | . . . Total Orders . | . . . Ally Attacks . | . . . Total Damage . | . . . Kills . | . . . Allies Corrupted . | . . . Allies Melted . | . . . Intel | -11 -10 -9 ------- Run | Yrd Mat Mat Active Infowar (turns) 1471 | 37 1257 177 Structural 177 | . . 177 Seismic 1465 | 37 1257 171 Robot Analysis Total . | . . . Derelict Logs Recovered . | . . . Drone Launches . | . . . Drone Recoveries . | . . . Exploration | -11 -10 -9 ------------- Run | Yrd Mat Mat Turns Passed 1564 | 130 1257 177 Spaces Moved 804 | 63 676 65 Core 9 | 9 . . Treads 795 | 54 676 65 Legs . | . . . Wheels . | . . . Hover . | . . . Flight . | . . . Fastest Speed 50 | 50 160 160 Average Speed 159 | 144 160 166 Slowest Speed 240 | 160 160 240 Overloaded Moves . | . . . Propulsion Burnouts . | . . . Robots Hopped . | . . . Potential Cave-ins . | . . . Cave-ins Triggered . | . . . Exploration Rate (%) 30 | 4 78 9 Regions Visited 2 Branch Regions . Pre-discovered Areas . | . . . Known Exits Taken . | . . . Unknown Exits Taken 2 | 1 1 . Scrap Searched . | . . . Spaces Dug . | . . . Terrain Destroyed 8 | 3 5 . Melee . | . . . Projectile . | . . . AOE 8 | 3 5 . Terrain Rammed . | . . . Walls Destroyed . | . . . Machines Disabled . | . . . Actions | -11 -10 -9 --------- Run | Yrd Mat Mat Total 969 | 81 789 99 Wait 68 | . 63 5 Move 802 | 62 675 65 Hop . | . . . Pick Up 12 | 2 10 . Fast Attach 8 | 7 1 . Attach 2 | . . 2 Detach 1 | . 1 . Swap 1 | . 1 . Drop 1 | . 1 . Fire 73 | 10 36 27 Melee . | . . . Ram . | . . . Kick . | . . . Crush 1 | . 1 . Escape Stasis . | . . . Rewire . | . . . Trap . | . . . Miscellaneous . | . . . Route ------- -11/Scrapyard -10/Materials (discovered 4 exits: [*Mat x2] / [*Min] / [*Sub]) -9/Materials History --------- Turn | Location | Event 14 | -11/Scrapyard | Discovered new exit (range 15) 131 | -11/Scrapyard | Entered Materials 232 | -10/Materials | Discovered new exit (range 9) 309 | -10/Materials | Build established: Mutant 368 | -10/Materials | Discovered new exit (range 16) 713 | -10/Materials | Discovered new exit (range 3) 1251 | -10/Materials | Discovered new exit (range 12) 1388 | -10/Materials | Entered another Materials area 1388 | -9/Materials | Evolved 2 slots: Utility x1, Weapon x1 1565 | -9/Materials | Self-destructed Last Messages --------------- 01486_ K-01 Serf collects debris. 01499_ Lgt. Treads destroyed. 01501_ K-01 Serf collects debris. 01523_ Y-45 Defender destroyed. 01524_ Lgt. Ion Engine destroyed. 01525_ K-01 Serf collects debris. 01528_ R-06 Scavenger destroyed. 01530_ K-01 Serf collects debris. 01534_ Integrated Corrupted Lgt. Treads (+4). 01534_ K-01 Serf collects debris. 01540_ B-36 Bruiser destroyed. 01542_ K-01 Serf collects debris. 01545_ Lgt. Assault Rifle destroyed. 01546_ K-01 Serf collects debris. 01558_ G-34 Mercenary destroyed. 01558_ K-01 Serf collects debris. 01559_ Seismic Detector destroyed. 01559_ R-06 Scavenger collects Hacking Suite. 01561_ K-01 Serf collects debris. 01563_ Lgt. Treads destroyed. Map ----- +----------------------------------------------------+ | | | | | | | | | | | | | | | | | | | | | | | | | | | ?###############################?????????????????? | | ?## # ##?????????????????? | | ? # # ##?????????????????? | | ? # """ """ """ + ##?????????????????? | | ? # """ """ """ # ##?????????????????? | | ? # """ """ """ # ##?????????????????? | | ? # # ## ?????????? | | ?########+#############+#############+##?????????? | | ? # k ?????????? | | ???? # ?????????? | | ???? # T ?????????? | | ???? ############ ########?????????? | | ????############# @ # ?????????? | | ???????????????## %* # ???????????????? | | ???????????????##!!! %=""" # ???????????????? | | ??????????????? #!!! k! """ # ???????????????? | | ??????????????? #!!! ! """ + ???????????????? | | ??????????????? # gr *%= # ?????????????? | | ??????????????? # / = # ????????????? | | ??????????????? # %#" "#"T"##### ???????????????? | | ??????????????? # g #"R"######### ???????????????? | | ??????????????? + #"""######???????????????????? | | ??????????????? # ######???????????????????????? | | ????????????? # ######???????????????????????? | | ?????????????#### ?????????????????????????????? | | ?????????????### ?????????????????????????????? | | ???????????????? ?????????????????????????????? | | ??????????????? ? ??????????????????????????????? | | ?????????????????????????????????????????????????? | | ?????????????????????????????????????????????????? | | ?????????????????????????????????????????????????? | | ?????????????????????????????????????????????????? | | ?????????????????????????????????????????????????? | | ?????????????????????????????????????????????????? | | ?????????????????????????????????????????????????? | | ?????????????????????????????????????????????????? | | ?????????????????????????????????????????????????? | +----------------------------------------------------+ Best States ------------- Heat Dissipation 28 Energy Generation 10 Energy Capacity 125 Matter Stores 300 Matter Capacity 300 Sight Range 16 Terrain Scan Density 10 Evasion (%) 40 Recoil Reduction 2 Item Schematics ----------------- None Robot Schematics ------------------ None Fabricated ------------ Nothing Repaired ---------- Nothing Studied --------- None Alien Tech Used ----------------- None Achievements -------------- None Challenges ------------ None Game ------ Seed ExpertHardcellDrillbomb Manual? 0 Play Time 00:11:37 Cumulative 35.0 hours Start 2026.02.01 @ 19:20:55 End 2026.02.01 @ 19:32:55 Sessions 1 Manual Loads 0 Difficulty Rogue Special Mode None Game No. 75 Rogue 75 Adventurer 0 Explorer 0 Win Type - Total 0 Types 0/0/0/0/0/0/0/0/0/0 Lore% 16 Gallery% 24 Achievement% 19 Wizard Run 0 Options --------- Layout 0 ASCII 0 Keyboard 1 Movement Arrows Keybinds 0 Fullscreen 1 Font 18/Smallcaps Map View 38x25 Zoom Use 90% Tactical HUD 1 Map Filters NONE Filters NONE Steam 1 RUN: 7846c0ce-9f5e-45d2-ad25-5e3691384508